bitfinex-derivatives/quotes_ETHF0:USTF0_20250807
["timestamp","ask_amount","ask_price","bid_price","bid_amount"]
[1754602657793,41.3543388,3865.6,3865.5,1.7086]
[1754602658294,42.06462471,3865.6,3865.5,1.7086]
[1754602658498,41.3543388,3865.6,3865.5,1.7086]
[1754602658688,41.8715688,3865.6,3865.5,1.7086]
[1754602658996,41.61953,3865.6,3865.5,1.7086]
[1754602659199,41.1023,3865.6,3865.5,1.7086]
[1754602659399,40.8,3865.6,3865.5,1.7086]
[1754602661798,3.2078,3866.8,3866.7,0.51708]
[1754602661990,1.85610762,3868.1,3867.1,0.51703]
[1754602662195,1.3787,3868.4,3867.9,0.51691]
[1754602662501,0.5811,3868.3,3868.2,0.51688]
[1754602662805,1.2451,3868.3,3868.2,0.51688]
[1754602662995,1.2451,3868.3,3868.2,0.8474]
[1754602662996,1.681,3868.3,3868.2,0.8474]
[1754602663198,1.2451,3868.3,3868.2,0.8474]
[1754602663402,0.7242,3868.3,3868.2,1.43044008]
[1754602663898,17.85,3868.7,3868.6,0.5531]
[1754602663899,18.6974,3868.7,3868.6,0.5531]
[1754602664094,0.8474,3868.7,3868.6,1.21214822]
[1754602664405,1.7054,3868.7,3868.6,1.4301346]
[1754602664599,0.4361,3868.9,3868.8,0.8474]
[1754602664794,0.4361,3868.9,3868.8,1.7244346]
[1754602665001,0.858,3868.9,3868.8,1.7244346]
[1754602665301,2.1525,3868.9,3868.8,1.21214822]
[1754602668199,2.1525,3868.9,3868.8,1.19499699]
[1754602668702,2.1525,3868.9,3868.8,1.19478656]
[1754602669202,2.1525,3868.9,3868.8,1.19457608]
[1754602669607,2.1525,3868.9,3868.8,1.48887608]
[1754602669998,2.1525,3868.9,3868.8,1.19457608]
[1754602672308,2.1525,3868.9,3868.8,1.48887608]
[1754602672704,1.7054,3868.9,3868.8,1.48887608]
[1754602674110,2.1525,3868.9,3868.8,1.48887608]
[1754602676909,2.1525,3868.9,3868.8,0.8474]
[1754602677110,2.1525,3868.9,3868.8,1.19406837]
[1754602678408,2.1525,3868.9,3868.8,1.48836837]
[1754602681912,2.1525,3868.9,3868.8,1.19406837]
[1754602683316,0.4361,3868.9,3868.8,1.47846837]
[1754602683612,0.4219,3869.2,3869.1,0.5531]
[1754602683613,1.4333,3869.2,3869.1,0.5531]
[1754602683811,1.4333,3869.2,3869.1,1.98532837]
[1754602684011,1.7164,3869.2,3869.1,1.98532837]
[1754602684211,2.1525,3869.2,3869.1,1.98532837]
[1754602684910,2.1525,3869.2,3869.1,2.33395092]
[1754602685314,0.5643,3869.6,3869.5,0.5167]
[1754602685517,2.1525,3869.6,3869.5,1.70184546]
[1754602686016,2.1525,3869.6,3869.5,1.98624546]
[1754602686216,5.3603,3869.9,3869.8,1.06977]
[1754602686517,5.3603,3869.9,3869.8,1.70181546]
[1754602687513,5.3603,3869.9,3869.8,1.18514546]
[1754602689014,5.3603,3869.9,3869.8,0.90074546]
[1754602689212,5.3603,3869.9,3869.8,1.18514546]
[1754602689608,5.3603,3869.9,3869.8,1.46954546]
[1754602689816,5.3603,3869.9,3869.8,1.68782249]
[1754602690013,5.3603,3869.9,3869.8,1.40342249]
[1754602690512,4.9132,3869.9,3869.8,1.18514546]
[1754602690714,2.1525,3869.9,3869.8,1.46954546]
[1754602690920,1.7054,3870.3,3870.2,0.8375]
[1754602691114,2.39327148,3870.3,3870.2,1.18514546]
[1754602691417,2.84037148,3870.3,3870.2,1.18514546]
[1754602691817,2.84037148,3870.3,3870.2,1.39413319]
[1754602692213,2.84037148,3870.3,3870.2,1.91075319]
[1754602692413,2.84037148,3870.3,3870.2,1.70176546]
[1754602692614,2.84037148,3870.3,3870.2,1.18514546]
[1754602693122,3.35697148,3870.3,3870.2,1.18514546]
[1754602693418,2.84037148,3870.3,3870.2,1.18514546]
[1754602693614,2.84037148,3870.3,3870.2,0.8375]
[1754602694014,2.84037148,3870.3,3870.2,1.19856465]
[1754602694420,2.84037148,3870.3,3870.2,1.19845785]
[1754602695022,2.84037148,3870.3,3870.2,1.19845958]
[1754602696821,2.84037148,3870.3,3870.2,1.19824944]
[1754602699114,2.84037148,3870.3,3870.2,0.91384944]
[1754602699725,2.84037148,3870.3,3870.2,0.5531]
[1754602700026,2.84037148,3870.3,3870.2,0.91363559]
[1754602702716,2.84037148,3870.3,3870.2,0.91346385]
[1754602703428,2.84037148,3870.3,3870.2,0.36036385]
[1754602703617,0.8672,3869.7,3869.6,0.51669]
[1754602703821,2.77567148,3869.7,3869.6,0.87479]
[1754602704922,1.3948,3869.6,3869.5,0.51671]
[1754602705127,2.0878,3869.6,3869.5,0.87481]
[1754602705322,2.0878,3869.6,3869.5,1.16761]
[1754602705523,2.0878,3869.6,3869.5,1.73001]
[1754602705723,2.0878,3869.6,3869.5,2.00071]
[1754602705923,2.0878,3869.6,3869.5,1.2052]
[1754602706125,2.77567148,3869.6,3869.5,0.9345]
[1754602706329,2.77567148,3869.6,3869.5,0.6509]
[1754602708132,2.0878,3869.6,3869.5,0.6509]
[1754602708727,2.0878,3869.6,3869.5,0.9297]
[1754602710842,2.0878,3869.6,3869.5,1.2133]
[1754602712424,2.0878,3869.6,3869.4,0.51672]
[1754602712624,2.42513148,3869.9,3869.4,0.3581]
[1754602712829,2.0878,3869.5,3869.4,1.72192]
[1754602713033,2.0878,3869.5,3869.4,2.00072]
[1754602715536,2.0878,3869.5,3869.4,2.35588095]
[1754602720239,2.0878,3869.5,3869.4,2.00072]
[1754602720440,2.0878,3869.5,3869.4,2.35629524]
[1754602722036,2.0878,3869.5,3869.4,1.80679524]
[1754602722639,2.0878,3869.5,3869.4,2.35629524]
[1754602726146,2.0878,3869.5,3869.4,2.35248343]
[1754602728643,2.0878,3869.5,3869.4,2.00072]
[1754602728845,0.8672,3869.5,3869.3,0.51673]
[1754602729053,2.1063,3869.4,3869.3,0.87613]
[1754602729236,2.1063,3869.4,3869.3,1.14213]
[1754602729549,2.1063,3869.4,3869.3,1.42353]
[1754602729738,2.1063,3869.4,3869.3,1.70343]
[1754602729945,2.1063,3869.4,3869.3,1.97083]
[1754602733056,2.1063,3869.3,3869.2,3.72454]
[1754602733744,2.1063,3869.3,3869.2,4.64524]
[1754602734347,2.1063,3869.3,3869.2,4.91124]
[1754602736648,2.1063,3869.3,3869.2,5.17864]
[1754602751764,2.1063,3869.3,3869.2,5.44464]
[1754602752165,2.1063,3869.3,3869.2,5.17864]
[1754602753168,2.1063,3869.3,3869.2,5.42974]
[1754602753566,1.7136,3869.9,3869.8,0.51667]
[1754602753964,2.1131,3869.9,3869.8,0.51667]
[1754602755872,2.1131,3869.9,3869.8,0.87587]
[1754602756373,2.1131,3869.9,3869.8,1.39157]
[1754602757468,2.1131,3869.9,3869.8,1.96567]
[1754602758273,2.1131,3869.9,3869.8,1.71517]
[1754602758475,2.1131,3869.9,3869.8,1.96567]
[1754602758868,1.37655181,3870.2,3870.1,0.51663]
[1754602759171,2.1131,3870.2,3870.1,1.96563]
[1754602760269,2.1131,3870.2,3870.1,0.51663]
[1754602760572,2.1131,3870.2,3870.1,0.87583]
[1754602760766,2.1131,3870.2,3870.1,1.14103]
[1754602760961,2.1131,3870.2,3870.1,1.39153]
[1754602761669,2.1131,3870.2,3870.1,1.14103]
[1754602761866,2.1131,3870.2,3870.1,0.87583]
[1754602764475,2.1131,3870.2,3870.1,1.96563]
[1754602769578,2.1131,3870.2,3870.1,2.21623]
[1754602770278,0.3995,3870.2,3870.1,2.21623]
[1754602770474,1.0821,3870.2,3870.1,2.21623]
[1754602770677,1.5335,3870.2,3870.1,2.21623]
[1754602770876,2.1131,3870.2,3870.1,2.21623]
[1754602774382,2.1131,3870.2,3870.1,1.96563]
[1754602779989,2.1131,3870.2,3870.1,2.21623]
[1754602780181,2.1131,3870.2,3870.1,1.96563]
[1754602782787,2.1131,3870.2,3870.1,0.51663]
[1754602788903,2.62972,3870.2,3870.1,0.51663]
[1754602789103,2.62972,3870.2,3870.0,3.2078]
[1754602789305,2.0539,3870.1,3870.0,3.72443]
[1754602790004,2.57053,3870.1,3870.0,3.2078]
[1754602790900,1.2102,3870.0,3869.8,0.51667]
[1754602791101,2.0539,3869.9,3869.8,0.51667]
[1754602793204,2.18147,3869.8,3869.7,0.87498]
[1754602793402,2.57057,3869.8,3869.7,0.87498]
[1754602793598,2.0539,3869.8,3869.7,0.3583]
[1754602794905,2.0539,3869.8,3869.7,0.5946]
[1754602795208,2.0539,3869.8,3869.7,0.8595]
[1754602796813,2.0539,3869.8,3869.7,1.1581]
[1754602797314,2.0539,3869.8,3869.7,1.4249]
[1754602800413,1.6173,3869.7,3869.6,3.2078]
[1754602800720,2.0539,3869.2,3869.1,0.34764546]
[1754602801122,1.2282,3868.4,3868.3,4.02326]
[1754602801419,2.0539,3868.4,3868.3,1.24556]
[1754602801621,2.0539,3868.4,3868.3,1.74676]
[1754602802015,2.0539,3868.4,3868.3,2.01356]
[1754602803619,3.2078,3869.0,3868.0,0.9936]
[1754602803620,0.5822,3868.1,3868.0,0.9936]
[1754602803829,2.0539,3868.1,3868.0,0.7287]
[1754602804222,2.0539,3868.1,3867.9,3.2078]
[1754602804525,1.36061,3868.0,3867.9,3.6379]
[1754602804821,2.0539,3868.0,3867.9,3.6379]
[1754602805326,2.0539,3868.0,3867.9,4.15483]
[1754602805722,2.0539,3868.0,3867.9,4.45343]
[1754602807424,3.2078,3868.6,3867.5,0.51697]
[1754602807425,0.51693,3867.9,3867.5,0.51697]
[1754602807617,2.0539,3867.6,3867.5,0.51697]
[1754602807818,0.8437,3867.6,3867.5,0.8303]
[1754602808021,0.8437,3867.6,3867.5,1.2604]
[1754602808322,2.0539,3867.6,3867.5,1.2604]
[1754602808921,2.0539,3867.6,3867.5,1.4967]
[1754602809825,0.8437,3867.6,3867.0,3.72483]
[1754602810033,2.0539,3867.1,3867.0,5.22153]
[1754602810326,2.0539,3867.1,3867.0,4.7045]
[1754602811329,2.0539,3867.1,3867.0,3.9365]
[1754602813323,2.0539,3867.1,3867.0,4.4682]
[1754602813525,2.0539,3867.1,3867.0,4.6924]
[1754602815730,2.0539,3867.1,3867.0,3.5064]
[1754602816026,2.0539,3867.1,3867.0,3.9434]
[1754602816336,2.0539,3867.1,3867.0,3.2078]
[1754602816531,1.9931,3867.1,3867.0,4.4518]
[1754602816834,1.9931,3867.1,3867.0,4.676]
[1754602818828,3.2078,3867.8,3867.7,0.51695]
[1754602819029,5.2284,3868.2,3868.1,1.4682]
[1754602820933,5.2284,3868.2,3868.1,1.244]
[1754602821134,5.2284,3868.2,3868.1,1.4682]
[1754602822931,5.2284,3868.2,3868.1,1.244]
[1754602835837,5.93786777,3868.2,3868.1,1.244]
[1754602836042,5.2284,3868.2,3868.1,1.244]
[1754602836441,5.93786777,3868.2,3868.1,1.244]
[1754602836641,5.2284,3868.2,3868.1,1.244]
[1754602836842,5.93786777,3868.2,3868.1,1.244]
[1754602837037,5.2284,3868.2,3868.1,1.244]
[1754602837243,5.93786777,3868.2,3868.1,1.462]
[1754602837545,5.2284,3868.2,3868.1,1.462]
[1754602837946,5.2284,3868.2,3868.1,0.9683]
[1754602839241,5.2284,3868.2,3868.1,1.1863]
[1754602839948,5.2284,3868.2,3868.1,1.462]
[1754602840345,0.9097,3867.5,3866.9,0.218]
[1754602840544,0.9097,3867.5,3866.5,1.50023178]
[1754602840545,0.7905,3867.1,3867.0,3.72484]
[1754602840750,1.6116,3867.1,3867.0,3.72484]
[1754602841047,2.0206,3867.1,3867.0,4.16184]
[1754602841242,2.0206,3867.1,3867.0,4.44164]
[1754602841640,2.0206,3867.1,3867.0,4.91114]
[1754602841837,1.7477,3867.1,3867.0,4.91114]
[1754602842047,2.0206,3867.4,3867.3,1.979]
[1754602842945,0.51695,3867.7,3867.3,0.517]
[1754602843346,0.51699,3867.5,3867.2,0.51701]
[1754602843749,3.2078,3867.8,3867.0,3.2078]
[1754602843750,0.51697,3867.6,3867.3,0.51699]
[1754602844750,0.51697,3867.6,3867.4,0.51698]
[1754602845249,0.51696,3867.7,3867.4,0.51698]
[1754602846941,0.51697,3867.6,3867.0,3.2078]
[1754602848051,0.51702,3867.3,3867.0,3.2078]
[1754602848252,0.51703,3867.2,3867.0,3.2078]
[1754602849161,0.51709,3866.7,3866.6,3.2078]
[1754602850053,0.51709,3866.7,3866.6,3.7249]
[1754602850250,0.51709,3866.7,3866.6,3.2078]
[1754602850761,0.51708,3866.8,3866.6,3.2078]
[1754602853963,0.51715,3866.3,3866.1,3.72496]
[1754602854767,0.51713,3866.4,3866.3,0.51714]
[1754602855369,0.51715,3866.3,3866.1,0.51716]
[1754602855667,0.51713,3866.4,3866.3,0.51714]
[1754602856664,0.51712,3866.5,3866.3,0.51714]
[1754602858174,3.72491,3866.6,3866.4,0.51711]
[1754602859874,0.51713,3866.4,3866.3,0.51713]
[1754602860471,0.51712,3866.5,3866.3,0.51713]
[1754602862170,3.2078,3866.6,3866.4,0.51712]
[1754602862370,3.72491,3866.6,3866.4,0.51712]
[1754602862782,3.2078,3866.6,3866.4,0.51712]
[1754602863079,3.72491,3866.6,3866.4,0.51712]
[1754602864779,3.72491,3866.6,3866.1,0.20640332]
[1754602864780,0.51709,3866.7,3866.6,0.5171]
[1754602865076,3.2078,3866.7,3866.5,0.5171]
[1754602866180,3.72489,3866.7,3866.5,0.5171]
[1754602866477,3.2078,3866.7,3866.5,0.5171]
[1754602866886,0.51706,3866.9,3866.8,0.51707]
[1754602867285,0.51706,3866.9,3866.7,0.51708]
[1754602867880,0.51709,3866.7,3866.6,0.5171]
[1754602868088,0.51707,3866.9,3866.8,0.51707]
[1754602868385,0.51708,3866.8,3866.7,0.51708]
[1754602868776,3.2078,3867.2,3866.8,0.51706]
[1754602868981,3.2078,3867.2,3866.7,0.51708]
[1754602869181,0.51707,3866.9,3866.7,0.51708]
[1754602869481,0.51708,3866.8,3866.6,0.5171]
[1754602869775,3.2078,3867.2,3866.2,1.29288]
[1754602869980,0.51707,3866.8,3866.7,0.51708]
[1754602870485,0.51706,3866.9,3866.7,0.51708]
[1754602871382,3.2078,3867.2,3866.6,0.51709]
[1754602871383,0.51709,3866.7,3866.6,0.51709]
[1754602871584,3.2078,3867.2,3866.2,1.29288]
[1754602871783,3.2078,3867.2,3866.6,0.51709]
[1754602872981,0.51708,3866.8,3866.6,0.51709]
[1754602873181,0.5171,3866.7,3866.5,0.5171]
[1754602873788,0.51708,3866.8,3866.6,0.5171]
[1754602874188,0.51706,3866.9,3866.8,0.51707]
[1754602874377,0.51709,3866.7,3866.1,3.41183015]
[1754602874583,0.51708,3866.8,3866.6,0.51709]
[1754602874781,0.51707,3866.9,3866.7,0.51708]
[1754602875177,0.51705,3867.0,3866.9,0.51706]
[1754602875382,0.51705,3867.0,3866.8,0.51706]
[1754602878591,0.51708,3866.8,3866.7,0.51708]
[1754602878793,0.51707,3866.9,3866.7,0.51708]
[1754602880786,1.1944,3866.8,3866.7,0.51708]
[1754602881185,1.1944,3866.8,3866.7,1.15338]
[1754602884595,0.7955,3866.8,3866.7,1.15338]
[1754602884796,0.785,3866.8,3866.7,1.36668]
[1754602885407,0.25485294,3867.1,3866.9,0.51706]
[1754602885694,0.785,3867.1,3867.0,0.8496]
[1754602885893,0.25485294,3867.2,3867.1,0.51703]
[1754602886093,0.64095294,3867.2,3867.1,1.36663]
[1754602886396,0.785,3867.2,3867.1,1.36663]
[1754602887094,0.785,3867.4,3867.3,1.15331]
[1754602887299,1.1944,3867.4,3867.3,1.36661]
[1754602888894,0.785,3867.4,3867.3,1.36661]
[1754602890102,1.1944,3867.4,3867.3,1.36661]
[1754602890890,0.3861,3867.7,3867.6,0.51696]
[1754602891197,1.1944,3867.7,3867.6,1.15326]
[1754602891600,1.2002,3867.7,3867.6,1.15326]
[1754602892496,1.2002,3867.7,3867.6,0.6363]
[1754602895998,1.2002,3867.7,3867.6,0.6223]
[1754602896501,0.4152,3867.4,3867.3,0.51699]
[1754602896697,1.1939,3867.4,3867.3,0.51699]
[1754602898606,1.1939,3867.4,3867.0,0.4466]
[1754602898607,0.3767,3867.2,3866.9,0.4466]
[1754602898904,0.3767,3867.0,3866.9,0.96366]
[1754602899206,1.1939,3867.0,3866.9,0.96366]
[1754602899503,1.1939,3867.0,3866.9,0.51706]
[1754602899704,1.1939,3867.0,3866.9,0.96366]
[1754602900001,1.1939,3867.0,3866.9,1.16006]
[1754602900208,1.1939,3867.0,3866.9,0.96366]
[1754602901596,0.3767,3866.9,3866.8,0.51706]
[1754602901795,0.8172,3866.5,3866.4,3.2078]
[1754602901997,0.51719,3866.0,3865.8,3.41207049]
[1754602902192,0.51719,3866.0,3864.8,3.2078]
[1754602902193,0.5173,3865.1,3864.8,3.2078]
[1754602902399,0.51738,3864.5,3864.4,3.2078]
[1754602902601,0.1302,3863.9,3863.6,3.2078]
[1754602902793,0.64769,3863.7,3863.2,0.3736]
[1754602902993,0.51753,3863.4,3862.8,0.5176]
[1754602903205,0.1302,3863.4,3863.0,0.51757]
[1754602903499,3.2078,3863.5,3863.3,0.3736]
[1754602903703,3.2078,3864.5,3862.9,1.29399]
[1754602903911,0.1302,3865.0,3864.8,0.51734]
[1754602904096,3.2078,3865.2,3864.9,0.51732]
[1754602904300,3.338,3865.2,3865.1,1.2034]
[1754602904502,3.2078,3865.2,3865.1,1.2034]
[1754602905299,3.2078,3865.2,3865.1,1.53077214]
[1754602906805,3.338,3865.2,3865.1,1.53077214]
[1754602907109,3.338,3865.2,3865.1,0.32737214]
[1754602908004,3.338,3865.2,3865.1,0.19707214]
[1754602908601,3.2078,3865.2,3865.1,0.57067214]
[1754602909215,3.2078,3865.2,3865.1,0.3736]
[1754602912710,3.2078,3865.2,3865.1,1.2034]
[1754602915113,3.72509,3865.2,3865.1,1.2034]
[1754602915614,3.72509,3865.2,3865.1,2.0185]
[1754602916112,3.2078,3865.2,3865.1,2.0185]
[1754602917815,0.51733,3865.0,3864.8,0.7568]
[1754602918114,0.51733,3865.0,3864.9,0.7568]
[1754602918506,0.51733,3865.0,3864.9,0.3736]
[1754602918710,0.51733,3865.0,3864.9,0.6383]
[1754602918909,0.51733,3865.0,3864.9,1.0215]
[1754602919107,0.51733,3865.0,3864.9,1.5719]
[1754602920403,0.51734,3864.8,3864.6,1.6353]
[1754602920611,0.51734,3864.8,3864.7,2.0185]
[1754602920909,0.51733,3864.9,3864.7,2.0185]
[1754602921111,0.51733,3864.9,3864.8,2.0185]
[1754602921512,0.56803,3864.9,3864.8,2.0185]
[1754602921711,0.58385,3864.7,3864.6,1.9558]
[1754602922016,0.0254,3864.7,3864.6,1.9558]
[1754602922417,0.0507,3864.7,3864.6,1.9558]
[1754602922613,0.0254,3864.7,3864.6,1.9558]
[1754602923317,0.0507,3864.7,3864.6,1.9558]
[1754602923523,0.51733,3864.9,3864.6,0.7881]
[1754602923720,3.75049,3865.2,3865.1,1.9558]
[1754602923918,3.75049,3865.2,3865.1,0.3768]
[1754602924115,3.79159,3865.2,3865.1,1.9558]
[1754602925819,3.77579,3865.2,3865.1,1.9558]
[1754602926032,3.75049,3865.2,3865.1,1.9558]
[1754602926224,3.79159,3865.2,3865.1,1.9558]
[1754602926924,0.51739,3864.5,3864.3,0.3768]
[1754602927130,0.0412,3864.2,3864.1,1.04653]
[1754602927326,0.0665,3864.2,3864.1,1.30553]
[1754602927631,0.0665,3864.2,3864.1,2.05563]
[1754602927926,0.0665,3864.2,3864.1,2.47323]
[1754602928132,0.0665,3864.2,3864.1,1.9558]
[1754602930936,0.51742,3864.3,3864.1,2.47322]
[1754602931130,0.51742,3864.3,3864.2,1.9558]
[1754602931935,0.56812,3864.3,3864.2,1.9558]
[1754602932133,0.58392,3864.3,3864.2,1.9558]
[1754602932329,1.32338433,3864.3,3864.2,1.9558]
[1754602932626,0.58392,3864.3,3864.2,1.9558]
[1754602932827,0.82246131,3864.3,3864.2,1.9558]
[1754602933133,0.52320564,3864.4,3864.2,1.30552]
[1754602933339,0.51738,3864.5,3864.4,0.7881]
[1754602933644,0.78306559,3864.5,3864.4,1.9558]
[1754602934438,1.56296559,3864.5,3864.4,1.9558]
[1754602934736,1.57876559,3864.5,3864.4,1.9558]
[1754602935929,1.56990757,3864.5,3864.4,1.9558]
[1754602936130,1.29728,3864.5,3864.4,1.9558]
[1754602936341,1.55414879,3864.5,3864.4,1.9558]
[1754602937135,0.3185,3864.1,3864.0,1.1649]
[1754602937339,1.52889879,3864.1,3864.0,1.9558]
[1754602940337,1.27203,3864.1,3864.0,1.9558]
[1754602940537,1.52889879,3864.1,3864.0,0.3768]
[1754602940742,1.31313,3864.1,3864.0,1.0091]
[1754602940943,1.56999879,3864.1,3864.0,1.2605]
[1754602941138,1.31313,3864.1,3864.0,1.9558]
[1754602941439,1.55419879,3864.1,3864.0,1.9558]
[1754602941637,1.31313,3864.1,3864.0,1.9558]
[1754602941838,1.55419879,3864.1,3864.0,1.9558]
[1754602942039,1.29733,3864.1,3864.0,1.9558]
[1754602942340,1.56978868,3864.1,3864.0,1.9558]
[1754602942544,1.31313,3864.1,3864.0,1.9558]
[1754602942745,1.56978868,3864.1,3864.0,1.9558]
[1754602942944,1.31313,3864.1,3864.0,1.9558]
[1754602943243,1.55398868,3864.1,3864.0,1.9558]
[1754602943446,1.29733,3864.1,3864.0,1.9558]
[1754602943633,1.55398868,3864.1,3864.0,1.9558]
[1754602943933,1.29733,3864.1,3864.0,1.9558]
[1754602944136,1.55398868,3864.1,3864.0,1.9558]
[1754602944331,1.29733,3864.1,3864.0,1.9558]
[1754602944542,1.55398868,3864.1,3864.0,1.9558]
[1754602944742,1.29733,3864.1,3864.0,1.9558]
[1754602945149,2.05103165,3864.1,3864.0,1.9558]
[1754602945446,2.30771492,3864.1,3864.0,1.9558]
[1754602945644,2.05103165,3864.1,3864.0,1.9558]
[1754602945840,2.30771492,3864.1,3864.0,1.9558]
[1754602946040,2.05103165,3864.1,3864.0,1.9558]
[1754602946236,0.51753,3863.4,3863.0,0.4176]
[1754602946446,0.51755,3863.3,3863.2,0.8872]
[1754602946653,1.24675,3863.3,3863.2,1.9558]
[1754602946949,1.29745,3863.3,3863.2,1.9558]
[1754602947144,1.31325,3863.3,3863.2,1.9558]
[1754602947342,1.31325,3863.3,3863.2,1.5382]
[1754602947544,1.31325,3863.3,3863.2,1.9558]
[1754602948340,3.72533,3863.4,3863.2,1.9558]
[1754602948651,3.72533,3863.4,3863.3,1.9558]
[1754602948851,3.2078,3863.4,3863.3,1.9558]
[1754602950255,3.6439,3863.4,3863.3,1.9558]
[1754602950552,3.2078,3863.4,3863.3,2.47334]
[1754602950948,3.2078,3863.4,3863.3,1.9558]
[1754602952452,3.72533,3863.4,3863.3,1.9558]
[1754602955352,4.16803,3863.4,3863.3,1.9558]
[1754602955557,3.72533,3863.4,3863.3,1.9558]
[1754602955746,3.2078,3863.4,3863.3,1.9558]
[1754602955952,3.9576,3863.4,3863.3,1.9558]
[1754602956154,3.937,3863.4,3863.3,1.9558]
[1754602956658,3.9576,3863.4,3863.3,1.2605]
[1754602957258,3.9576,3863.4,3863.3,1.5345]
[1754602957456,3.9576,3863.4,3863.3,1.9631]
[1754602957661,4.47514,3863.4,3863.1,0.51756]
[1754602957959,0.7498,3863.3,3863.2,0.9219]
[1754602958160,0.7498,3863.3,3863.2,1.9782]
[1754602958660,0.7498,3863.2,3863.1,2.10546]
[1754602959254,0.7498,3863.2,3863.1,2.49576]
[1754602959455,0.7498,3863.2,3863.1,1.9782]
[1754602960865,0.96025,3863.3,3863.1,1.29626]
[1754602961163,1.26735,3863.3,3863.2,1.9782]
[1754602961365,1.26245,3863.3,3863.2,1.5496]
[1754602961663,1.26735,3863.3,3863.2,1.9782]
[1754602962759,0.7498,3863.3,3863.2,1.9782]
[1754602963765,0.2865,3863.3,3863.2,1.9782]
[1754602965164,1.39010428,3864.5,3863.8,0.51747]
[1754602965357,0.0049,3864.8,3864.7,0.2576]
[1754602965558,0.96004,3864.8,3864.7,1.9782]
[1754602965762,3.46135849,3865.1,3865.0,1.9782]
[1754602965963,3.2078,3865.1,3865.0,1.9782]
[1754602966360,3.9449,3865.1,3865.0,1.9782]
[1754602966856,3.9449,3865.1,3865.0,1.5496]
[1754602967062,0.51731,3865.0,3864.7,0.3903]
[1754602967260,0.81171,3865.0,3864.9,0.7787]
[1754602967464,0.81951,3865.0,3864.9,1.9782]
[1754602967965,1.26221,3865.0,3864.9,1.9782]
[1754602969767,0.7449,3865.0,3864.9,1.9782]
[1754602970960,0.7449,3865.0,3864.9,1.7311]
[1754602971162,0.7449,3865.0,3864.9,1.9782]
[1754602971357,3.72511,3865.1,3864.9,1.9782]
[1754602971557,4.16781,3865.1,3865.0,1.9782]
[1754602971871,3.2078,3865.1,3865.0,1.9782]
[1754602972066,3.2078,3865.1,3865.0,2.49551]
[1754602972261,3.7251,3865.1,3865.0,1.9782]
[1754602973069,3.2078,3865.1,3865.0,1.9782]
[1754602974962,3.6505,3865.6,3865.0,0.7787]
[1754602975164,0.5173,3865.2,3865.1,1.9782]
[1754602977863,0.51728,3865.3,3865.2,0.3903]
[1754602978064,3.2078,3865.6,3865.2,1.9782]
[1754602978265,1.24645,3865.5,3865.4,0.7787]
[1754602978572,1.24645,3865.5,3865.4,1.9782]
[1754602980069,0.51725,3865.5,3865.4,1.9782]
[1754602980868,0.80375,3865.5,3865.4,1.9782]
[1754602982074,1.25615,3865.5,3865.4,1.9782]
[1754602982374,2.15105,3865.5,3865.4,1.9782]
[1754602985170,0.51728,3865.3,3865.1,0.7498]
[1754602985367,1.6361,3865.2,3865.1,0.8003]
[1754602985874,1.6361,3865.2,3865.1,1.9832]
[1754602988079,2.15343,3864.9,3864.8,1.9832]
[1754602988471,0.81923,3864.9,3864.8,1.9832]
[1754602988872,0.3788,3864.4,3863.6,3.2078]
[1754602989072,0.9395,3863.7,3863.6,4.8065]
[1754602989379,0.8049,3863.8,3863.7,1.5987]
[1754602989580,1.2573,3863.8,3863.7,1.9832]
[1754602989987,1.6361,3863.8,3863.7,1.5501]
[1754602990282,0.8049,3863.4,3863.3,0.9672]
[1754602990488,1.6361,3863.4,3863.3,0.8003]
[1754602990686,1.6361,3863.4,3863.3,1.2334]
[1754602990986,1.6361,3863.4,3863.3,1.9832]
[1754602994284,2.15363,3863.4,3863.3,1.9832]
[1754602994592,1.6361,3863.4,3863.3,1.9832]
[1754602995394,1.6361,3863.4,3863.3,2.50074]
[1754602995984,1.2573,3863.4,3863.3,0.7141]
[1754602996192,2.0189,3863.4,3863.3,1.0986]
[1754602997390,2.0189,3863.4,3863.3,0.3845]
[1754602997986,2.0189,3863.4,3862.9,1.1848]
[1754602997987,0.8049,3863.0,3862.9,1.1848]
[1754602998190,2.0189,3863.0,3862.9,1.1848]
[1754602998391,0.8049,3862.7,3862.6,0.77073]
[1754602998593,1.6361,3862.7,3862.6,2.50083]
[1754603000291,1.2573,3862.7,3862.6,2.50083]
[1754603001298,1.6361,3862.7,3862.6,2.50083]
[1754603001689,1.6361,3862.7,3862.6,2.52010221]
[1754603002397,1.6361,3862.7,3862.6,2.00247221]
[1754603002597,1.6361,3862.7,3862.6,2.00494749]
[1754603003194,1.6361,3862.7,3862.6,2.00742277]
[1754603003900,2.0189,3862.7,3862.6,2.00742277]
[1754603004693,0.9985,3862.7,3862.6,2.00989805]
[1754603004889,1.2573,3862.7,3862.6,2.00989805]
[1754603005096,2.0189,3862.7,3862.6,0.02669805]
[1754603005294,2.0189,3862.7,3862.6,0.41119805]
[1754603005600,2.0189,3862.7,3862.6,0.41367333]
[1754603005798,2.0189,3862.7,3862.6,1.29827333]
[1754603005993,2.0189,3862.7,3862.6,0.66677333]
[1754603006399,2.0189,3862.7,3862.6,1.57927333]
[1754603006599,2.0189,3862.7,3862.6,2.01484861]
[1754603007599,2.0189,3862.7,3862.6,2.01732389]
[1754603007795,2.53652,3862.7,3862.6,2.01732389]
[1754603008190,0.6376,3862.7,3862.6,1.30322389]
[1754603008391,0.81951,3862.8,3862.7,1.9832]
[1754603008701,2.15371,3862.8,3862.7,2.02606798]